fUST/lending_fUST_20250226
["ID","MTS","AMOUNT","RATE_DAILY","PERIOD"]
[354461343,1740519082965,-500.0,0.0005041,120]
[354461344,1740519082975,-500.0,0.0005041,120]
[354461345,1740519082984,-505.09340266,0.0005041,120]
[354461346,1740519082993,-803.68,0.0005041,120]
[354461347,1740519083003,-2827.55,0.0005041,120]
[354461348,1740519083012,-500.0,0.0005041,120]
[354461349,1740519083021,-500.0,0.0005041,120]
[354461350,1740519083031,-500.0,0.0005041,120]
[354461351,1740519083040,-500.0,0.0005041,120]
[354461352,1740519083049,-500.0,0.0005041,120]
[354461353,1740519083058,-1286.1,0.0005041,120]
[354461354,1740519083067,-506.80818413,0.0005041,120]
[354461355,1740519083077,-500.0,0.0005041,30]
[354461356,1740519083086,-425.40707381,0.0005041,120]
[354461357,1740519083095,-500.0,0.0005041,120]
[354461358,1740519083104,-500.0,0.0005041,120]
[354461359,1740519083114,-764.69,0.0005041,120]
[354461360,1740519083123,-2002.03,0.0005041,120]
[354461361,1740519083133,-500.0,0.0005041,120]
[354461362,1740519083142,-500.0,0.0005041,120]
[354461363,1740519083151,-500.0,0.0005041,120]
[354461364,1740519083161,-500.0,0.0005041,120]
[354461365,1740519083170,-500.0,0.0005041,120]
[354461366,1740519083179,-2874.66,0.0005041,120]
[354461367,1740519083189,-500.0,0.0005041,120]
[354461368,1740519083199,-1539.84,0.0005041,120]
[354461369,1740519083208,-500.0,0.0005041,120]
[354461370,1740519083217,-500.0,0.0005041,120]
[354461371,1740519083227,-1372.6,0.0005041,120]
[354461372,1740519083236,-508.08994077,0.0005041,120]
[354461373,1740519083246,-500.0,0.0005041,120]
[354461374,1740519083255,-500.0,0.0005041,120]
[354461375,1740519083274,-2167.36,0.0005041,120]
[354461376,1740519083289,-500.0,0.0005041,120]
[354461377,1740519083308,-500.0,0.0005041,120]
[354461378,1740519083326,-500.0,0.0005041,120]
[354461379,1740519083345,-1031.41,0.0005041,120]
[354461380,1740519083362,-1128.56,0.0005041,120]
[354461381,1740519083379,-500.0,0.0005041,120]
[354461382,1740519083394,-847.51,0.0005041,120]
[354461383,1740519083412,-395.07634735,0.0005041,120]
[354461384,1740519083431,-1010.46,0.0005041,120]
[354461385,1740519083448,-500.0,0.0005041,120]
[354461386,1740519083462,-3061.97,0.0005041,120]
[354461387,1740519083481,-1465.92,0.0005041,120]
[354461388,1740519083497,-500.0,0.0005041,120]
[354461389,1740519083512,-500.0,0.0005041,120]
[354461390,1740519083527,-500.0,0.0005041,120]
[354461391,1740519083541,-4164.0,0.0005041,120]
[354461392,1740519083557,-503.34517378,0.0005041,120]
[354461393,1740519083571,-500.0,0.0005041,120]
[354461394,1740519083586,-825.18,0.0005041,120]
[354461395,1740519083601,-500.0,0.0005041,120]
[354461396,1740519083618,-500.0,0.0005041,120]
[354461397,1740519083637,-507.03300518,0.0005041,120]
[354461398,1740519083652,-500.0,0.0005041,120]
[354461399,1740519083668,-500.0,0.0005041,120]
[354461400,1740519083683,-500.0,0.0005041,120]
[354461401,1740519083698,-500.0,0.0005041,120]
[354461402,1740519083714,-652.14,0.0005041,120]
[354461403,1740519083728,-2548.62,0.0005041,120]
[354461404,1740519083743,-500.0,0.0005041,120]
[354461405,1740519083757,-500.0,0.0005041,120]
[354461406,1740519083772,-552.6,0.0005041,120]
[354461407,1740519083787,-500.0,0.0005041,120]
[354461408,1740519083801,-500.0,0.0005041,120]
[354461409,1740519083816,-1272.0,0.0005041,120]
[354461410,1740519083831,-371.41775404,0.0005041,120]
[354461411,1740519083845,-2086.99,0.0005041,120]
[354461412,1740519083860,-500.0,0.0005041,120]
[354461413,1740519083874,-1922.37,0.0005041,120]
[354461414,1740519083889,-500.0,0.0005041,120]
[354461415,1740519083904,-500.0,0.0005041,120]
[354461416,1740519083919,-901.29,0.0005041,120]
[354461417,1740519083932,-500.0,0.0005041,120]
[354461418,1740519083949,-575.98,0.0005041,120]
[354461419,1740519083964,-652.73,0.0005041,120]
[354461420,1740519083978,-500.0,0.0005041,120]
[354461421,1740519083994,-505.9955988,0.0005041,120]
[354461422,1740519084009,-500.0,0.0005041,120]
[354461423,1740519084024,-1328.81,0.0005041,120]
[354461424,1740519084038,-500.0,0.0005041,120]
[354461425,1740519084053,-1309.55,0.0005041,120]
[354461426,1740519084068,-1000.0,0.0005041,120]
[354461427,1740519084085,-500.0,0.0005041,120]
[354461428,1740519084099,-805.37,0.0005041,45]
[354461429,1740519084114,-500.0,0.0005041,120]
[354461430,1740519084127,-592.05476827,0.0005041,120]
[354461431,1740519084142,-500.0,0.0005041,120]
[354461432,1740519084157,-500.0,0.0005041,120]
[354461433,1740519084172,-500.0,0.0005041,120]
[354461434,1740519084187,-1110.68,0.0005041,120]
[354461435,1740519084203,-500.0,0.0005041,120]
[354461436,1740519084217,-239.69382109,0.0005041,120]
[354461437,1740519084232,-500.0,0.0005041,120]
[354461438,1740519084248,-663.85,0.0005041,120]
[354461439,1740519084264,-500.0,0.0005041,120]
[354461440,1740519084279,-500.0,0.0005041,120]
[354461441,1740519084294,-500.0,0.0005041,120]
[354461442,1740519084310,-505.97697306,0.0005041,120]
[354461443,1740519084325,-500.0,0.0005041,120]
[354461444,1740519084339,-500.0,0.0005041,120]
[354461445,1740519084354,-500.0,0.0005041,120]
[354461446,1740519084369,-500.0,0.0005041,120]
[354461447,1740519084518,-1041.62,0.0005041,120]
[354461448,1740519084531,-500.0,0.0005041,120]
[354461449,1740519084541,-2860.45,0.0005041,120]
[354461450,1740519084551,-1053.83,0.0005041,120]
[354461451,1740519084560,-3100.63,0.0005041,120]
[354461452,1740519084570,-949.71,0.0005041,120]
[354461453,1740519084580,-505.4932349,0.0005041,120]
[354461454,1740519084590,-520.84,0.0005041,120]
[354461455,1740519084599,-504.95173037,0.0005041,120]
[354461456,1740519084609,-678.83,0.0005041,120]
[354461457,1740519084620,-562.27,0.0005041,120]
[354461458,1740519084632,-205.51844783,0.0005041,120]
[354461459,1740519084641,-500.0,0.0005041,120]
[354461460,1740519084651,-428.24645437,0.0005041,120]
[354461461,1740519084661,-794.87,0.0005041,120]
[354461462,1740519084670,-500.0,0.0005041,120]
[354461463,1740519084679,-500.0,0.0005041,120]
[354461464,1740519084689,-500.0,0.0005041,120]
[354461465,1740519084699,-885.27,0.0005041,120]
[354461466,1740519084708,-789.88,0.0005041,120]
[354461467,1740519084718,-664.89,0.0005041,120]
[354461468,1740519084727,-2502.34,0.0005041,120]
[354461469,1740519084737,-2491.31,0.0005041,120]
[354461470,1740519084747,-2347.69,0.0005041,120]
[354461471,1740519084756,-815.51,0.0005041,120]
[354461472,1740519084766,-500.0,0.0005041,120]
[354461473,1740519084776,-510.46330453,0.0005041,120]
[354461474,1740519084786,-500.0,0.0005041,120]
[354461475,1740519084795,-628.59,0.0005041,120]
[354461476,1740519084805,-500.0,0.0005041,120]
[354461477,1740519084814,-5346.16,0.0005041,120]
[354461478,1740519084824,-500.0,0.0005041,120]
[354461479,1740519084833,-2251.12,0.0005041,120]
[354461480,1740519084842,-584.7245525,0.0005041,30]
[354461481,1740519084852,-500.0,0.0005041,120]
[354461482,1740519084862,-1298.15,0.0005041,120]
[354461483,1740519084871,-500.0,0.0005041,120]
[354461484,1740519084880,-500.0,0.0005041,120]
[354461485,1740519084890,-500.0,0.0005041,120]
[354461486,1740519084900,-500.0,0.0005041,120]
[354461487,1740519084910,-500.0,0.0005041,120]
[354461488,1740519084919,-500.0,0.0005041,120]
[354461489,1740519084930,-500.0,0.0005041,120]
[354461490,1740519084939,-500.0,0.0005041,120]
[354461491,1740519084948,-506.0554809,0.0005041,120]
[354461492,1740519084958,-500.0,0.0005041,120]
[354461493,1740519084967,-914.32,0.0005041,120]
[354461494,1740519084977,-500.0,0.0005041,120]
[354461495,1740519084986,-500.0,0.0005041,120]
[354461496,1740519084995,-733.63,0.0005041,120]
[354461497,1740519085005,-500.0,0.0005041,120]
[354461498,1740519085014,-618.09,0.0005041,120]
[354461499,1740519085023,-500.0,0.0005041,120]
[354461500,1740519085033,-500.0,0.0005041,120]
[354461501,1740519085042,-500.0,0.0005041,120]
[354461502,1740519085051,-500.0,0.0005041,120]
[354461503,1740519085061,-500.0,0.0005041,120]
[354461504,1740519085071,-500.0,0.0005041,120]
[354461505,1740519085080,-506.04088682,0.0005041,120]
[354461506,1740519085090,-500.0,0.0005041,120]
[354461507,1740519085099,-500.0,0.0005041,120]
[354461508,1740519085110,-1870.42,0.0005041,120]
[354461509,1740519085124,-298.22049921,0.0005041,120]
[354461510,1740519085134,-500.0,0.0005041,120]
[354461511,1740519085145,-781.11,0.0005041,120]
[354461512,1740519085156,-500.0,0.0005041,120]
[354461513,1740519085166,-761.0,0.0005041,120]
[354461514,1740519085176,-735.47,0.0005041,120]
[354461515,1740519085186,-650.54,0.0005041,120]
[354461516,1740519085197,-500.0,0.0005041,120]
[354461517,1740519085207,-500.0,0.0005041,120]
[354461518,1740519085217,-500.0,0.0005041,120]
[354461519,1740519085227,-500.0,0.0005041,120]
[354461520,1740519085236,-1268.37,0.0005041,120]
[354461521,1740519085246,-500.0,0.0005041,120]
[354461522,1740519085256,-500.0,0.0005041,120]
[354461523,1740519085266,-1305.23,0.0005041,120]
[354461524,1740519085275,-708.84,0.0005041,120]
[354461525,1740519085285,-6800.06,0.0005041,120]
[354461526,1740519085295,-500.0,0.0005041,120]
[354461527,1740519085305,-1191.96,0.0005041,120]
[354461528,1740519085315,-500.0,0.0005041,120]
[354461529,1740519085324,-12312.64,0.0005041,3]
[354461530,1740519085334,-500.0,0.0005041,120]
[354461531,1740519085344,-500.0,0.0005041,120]
[354461532,1740519085353,-500.0,0.0005041,120]
[354461533,1740519085363,-500.0,0.0005041,120]
[354461534,1740519085374,-1000.0,0.0005041,2]
[354461535,1740519085384,-500.0,0.0005041,120]
[354461536,1740519085393,-500.0,0.0005041,120]
[354461537,1740519085403,-500.0,0.0005041,120]
[354461538,1740519085412,-555.31,0.0005041,120]
[354461539,1740519085422,-500.0,0.0005041,120]
[354461540,1740519085431,-653.71,0.0005041,30]
[354461541,1740519085444,-416.97076141,0.0005041,120]
[354461542,1740519085454,-1219.1,0.0005041,120]
[354461543,1740519085464,-500.0,0.0005041,120]
[354461544,1740519085474,-500.0,0.0005041,120]
[354461545,1740519085484,-500.0,0.0005041,120]
[354461546,1740519085494,-18715.62,0.0005041,120]
[354461547,1740519085504,-500.0,0.0005041,21]
[354461548,1740519085514,-500.0,0.0005041,120]
[354461549,1740519085523,-1421.63,0.0005041,120]
[354461550,1740519085532,-500.0,0.0005041,120]
[354461551,1740519085542,-501.75746886,0.0005041,120]
[354461552,1740519085551,-500.0,0.0005041,120]
[354461553,1740519085561,-708.9,0.0005041,120]
[354461554,1740519085571,-603.2708573,0.0005041,120]
[354461555,1740519085580,-500.0,0.0005041,120]
[354461556,1740519085590,-500.0,0.0005041,120]
[354461557,1740519085599,-1244.04,0.0005041,120]
[354461558,1740519085609,-9658.64,0.0005041,120]
[354461559,1740519085621,-527.79,0.0005041,120]
[354461560,1740519085631,-500.0,0.0005041,120]
[354461561,1740519085640,-3180.65,0.0005041,120]
[354461562,1740519085650,-2328.51,0.0005041,120]
[354461563,1740519085660,-500.0,0.0005041,120]
[354461564,1740519085670,-7440.29,0.0005041,120]
[354461565,1740519085679,-500.0,0.0005041,120]
[354461566,1740519085689,-1349.53,0.0005041,120]
[354461567,1740519085699,-500.0,0.0005041,120]
[354461568,1740519085709,-500.0,0.0005041,120]
[354461569,1740519085719,-500.29,0.0005041,120]
[354461570,1740519085728,-500.0,0.0005041,120]
[354461571,1740519085738,-500.0,0.0005041,120]
[354461572,1740519085747,-18480.01,0.0005041,120]
[354461573,1740519085757,-883.27,0.0005041,120]
[354461574,1740519085766,-500.0,0.0005041,120]
[354461575,1740519085775,-250.0,0.0005041,120]
[354461576,1740519085785,-500.0,0.0005041,120]
[354461577,1740519085795,-1537.59,0.0005041,120]
[354461578,1740519085804,-500.0,0.0005041,120]
[354461579,1740519085814,-3305.81,0.0005041,120]
[354461580,1740519085823,-1969.95,0.0005041,120]
[354461581,1740519085832,-500.0,0.0005041,120]
[354461582,1740519085842,-1538.91,0.0005041,120]
[354461583,1740519085851,-733.07,0.0005041,120]
[354461584,1740519085860,-2585.71,0.0005041,120]
[354461585,1740519085870,-500.0,0.0005041,120]
[354461586,1740519085879,-726.95,0.0005041,120]
[354461587,1740519085888,-500.0,0.0005041,120]
[354461588,1740519085898,-670.86,0.0005041,120]
[354461589,1740519085907,-500.0,0.0005041,120]
[354461590,1740519085918,-500.0,0.0005041,120]
[354461591,1740519085927,-5845.81,0.0005041,120]
[354461592,1740519085935,-590.64,0.0005041,120]
[354461593,1740519085946,-4218.67,0.0005041,120]
[354461594,1740519085956,-1445.64,0.0005041,120]
[354461595,1740519085966,-500.0,0.0005041,120]
[354461596,1740519085975,-500.0,0.0005041,120]
[354461597,1740519085984,-1100.12,0.0005041,20]
[354461598,1740519085994,-500.0,0.0005041,120]
[354461599,1740519086004,-2086.48,0.0005041,120]
[354461600,1740519086013,-283257.38,0.0005041,7]
[354461601,1740519086023,-500.0,0.0005041,120]
[354461602,1740519086033,-20065.51,0.0005041,120]
[354461603,1740519086043,-500.0,0.0005041,120]
[354461604,1740519086052,-660.84,0.0005041,120]
[354461605,1740519086061,-2037.3,0.0005041,120]
[354461606,1740519086071,-500.0,0.0005041,120]
[354461607,1740519086081,-286.90690992,0.0005041,120]
[354461608,1740519086091,-1374.19,0.0005041,120]
[354461609,1740519086101,-502.52,0.0005041,120]
[354461610,1740519086111,-4451.23,0.0005041,120]
[354461611,1740519086120,-500.0,0.0005041,120]
[354461612,1740519086131,-2896.86,0.0005041,120]
[354461613,1740519086140,-1021.51,0.0005041,120]
[354461614,1740519086150,-1685.87,0.0005041,120]
[354461615,1740519086161,-552.91,0.0005041,120]
[354461616,1740519086177,-565.81,0.0005041,120]
[354461617,1740519086190,-500.0,0.0005041,120]
[354461618,1740519086200,-500.0,0.0005041,120]
[354461619,1740519086210,-500.0,0.0005041,120]
[354461620,1740519086220,-500.0,0.0005041,120]
[354461621,1740519086230,-1928.44,0.0005041,120]
[354461622,1740519086241,-500.0,0.0005041,120]
[354461623,1740519086252,-2767.4,0.0005041,120]
[354461624,1740519086262,-500.0,0.0005041,120]
[354461625,1740519086270,-386.87709677,0.0005041,120]
[354461626,1740519086280,-870.42,0.0005041,120]
[354461627,1740519086289,-2177.76,0.0005041,120]
[354461628,1740519086300,-500.0,0.0005041,120]
[354461629,1740519086309,-500.0,0.0005041,120]
[354461630,1740519086319,-500.0,0.0005041,120]
[354461631,1740519086329,-500.0,0.0005041,120]
[354461632,1740519086339,-500.0,0.0005041,120]
[354461633,1740519086349,-500.0,0.0005041,120]
[354461634,1740519086359,-500.0,0.0005041,120]
[354461635,1740519086369,-978.57,0.0005041,120]
[354461636,1740519086379,-500.0,0.0005041,120]
[354461637,1740519086389,-1818.45,0.0005041,120]
[354461638,1740519086399,-478.55325447,0.0005041,120]
[354461639,1740519086408,-500.0,0.0005041,120]
[354461640,1740519086418,-500.0,0.0005041,120]
[354461641,1740519086427,-593.79,0.0005041,120]
[354461642,1740519086437,-500.0,0.0005041,120]
[354461643,1740519086447,-500.0,0.0005041,30]
[354461644,1740519086457,-661.6,0.0005041,120]
[354461645,1740519086467,-402.96688032,0.0005041,120]
[354461646,1740519086477,-2631.55,0.0005041,120]
[354461647,1740519086486,-500.0,0.0005041,120]
[354461648,1740519086495,-3650.16,0.0005041,120]
[354461649,1740519086504,-500.0,0.0005041,120]
[354461650,1740519086514,-500.0,0.0005041,120]
[354461651,1740519086524,-500.0,0.0005041,30]
[354461652,1740519086534,-500.0,0.0005041,120]
[354461653,1740519086543,-3173.46,0.0005041,120]
[354461654,1740519086554,-883.73,0.0005041,2]
[354461655,1740519086564,-500.0,0.0005041,120]
[354461656,1740519086574,-1566.75,0.0005041,120]
[354461657,1740519086583,-1100.1,0.0005041,120]
[354461658,1740519086592,-1475.49,0.0005041,120]
[354461659,1740519086602,-2766.33,0.0005041,120]
[354461660,1740519086612,-506.56423361,0.0005041,120]
[354461661,1740519086622,-500.0,0.0005041,120]
[354461662,1740519086634,-500.0,0.0005041,120]
[354461663,1740519086644,-500.0,0.0005041,120]
[354461664,1740519086655,-500.0,0.0005041,120]
[354461665,1740519086665,-29300.14,0.0005041,6]
[354461666,1740519086675,-19347.35,0.0005041,120]
[354461667,1740519086685,-1361.8,0.0005041,7]
[354461668,1740519086696,-504.60539619,0.0005041,120]
[354461669,1740519086709,-1497.93,0.0005041,120]
[354461670,1740519086718,-2398.83,0.0005041,120]
[354461671,1740519086728,-500.0,0.0005041,120]
[354461672,1740519086737,-30730.86,0.0005041,120]
[354461673,1740519086746,-186.05311889,0.0005041,120]
[354461674,1740519086756,-500.0,0.0005041,120]
[354461675,1740519086765,-500.0,0.0005041,120]
[354461676,1740519086775,-2352.84,0.0005041,120]
[354461677,1740519086785,-2743.62,0.0005041,120]
[354461678,1740519086795,-1070.39,0.0005041,120]
[354461679,1740519086804,-500.0,0.0005041,120]
[354461680,1740519086814,-500.0,0.0005041,120]
[354461681,1740519086824,-500.0,0.0005041,120]
[354461682,1740519086834,-500.0,0.0005041,120]
[354461683,1740519086843,-542.72,0.0005041,120]
[354461684,1740519086854,-500.0,0.0005041,120]
[354461685,1740519086863,-500.0,0.0005041,120]
[354461686,1740519086873,-14540.75,0.0005041,120]
[354461687,1740519086883,-5233.03,0.0005041,120]
[354461688,1740519086892,-500.0,0.0005041,120]
[354461689,1740519086901,-500.0,0.0005041,120]
[354461690,1740519086911,-2698.68,0.0005041,120]
[354461691,1740519086921,-1221.43,0.0005041,120]
[354461692,1740519087044,-3385.4,0.0005041,120]
[354461693,1740519087054,-1698.15,0.0005041,120]
[354461694,1740519087063,-500.0,0.0005041,120]
[354461695,1740519087073,-500.0,0.0005041,120]
[354461696,1740519087083,-500.0,0.0005041,120]
[354461697,1740519087092,-500.0,0.0005041,120]
[354461698,1740519087103,-797.95,0.0005041,120]
[354461699,1740519087114,-1952.34,0.0005041,120]
[354461700,1740519087124,-500.0,0.0005041,120]
[354461701,1740519087134,-500.0,0.0005041,120]
[354461702,1740519087143,-500.0,0.0005041,2]
[354461703,1740519087153,-500.0,0.0005041,120]
[354461704,1740519087163,-500.0,0.0005041,120]
[354461705,1740519087172,-500.0,0.0005041,120]
[354461706,1740519087182,-2341.12,0.0005041,120]
[354461707,1740519087193,-500.0,0.0005041,120]
[354461708,1740519087203,-500.0,0.0005041,120]
[354461709,1740519087212,-608.77,0.0005041,120]
[354461710,1740519087222,-500.0,0.0005041,120]
[354461711,1740519087231,-504.11821274,0.0005041,120]
[354461712,1740519087241,-4629.54,0.0005041,120]
[354461713,1740519087251,-6945.35,0.0005041,120]
[354461714,1740519087261,-500.0,0.0005041,120]
[354461715,1740519087270,-875.11,0.0005041,120]
[354461716,1740519087279,-500.0,0.0005041,120]
[354461717,1740519087289,-500.0,0.0005041,120]
[354461718,1740519087299,-500.0,0.0005041,120]
[354461719,1740519087309,-500.0,0.0005041,120]
[354461720,1740519087319,-1793.94,0.0005041,120]
[354461721,1740519087330,-1101.55,0.0005041,120]
[354461722,1740519087340,-615.16,0.0005041,120]
[354461723,1740519087349,-14537.03,0.0005041,120]
[354461724,1740519087359,-1776.54,0.0005041,120]
[354461725,1740519087369,-3751.79,0.0005041,120]
[354461726,1740519087380,-500.0,0.0005041,120]
[354461727,1740519087389,-500.0,0.0005041,120]
[354461728,1740519087399,-151.0,0.00050486,120]
[354461729,1740519087409,-1058.7772782,0.00050584,30]
[354461730,1740519087418,-500.0,0.00050684,120]
[354461731,1740519087428,-501.18232424,0.00050684,120]
[354461732,1740519087438,-500.0,0.00050684,120]
[354461733,1740519087448,-500.0,0.00050684,120]
[354461734,1740519087458,-500.0,0.00050684,120]
[354461735,1740519087468,-350.71623835,0.00050684,120]
[354461736,1740519087477,-500.0,0.00050684,120]
[354461737,1740519087487,-500.0,0.00050684,120]
[354461738,1740519087497,-500.0,0.00050684,120]
[354461739,1740519087507,-500.0,0.00050684,120]
[354461740,1740519087517,-500.0,0.00050684,120]
[354461741,1740519087527,-500.0,0.00050684,30]
[354461742,1740519087537,-1412.39,0.00050684,120]
[354461743,1740519087547,-500.0,0.00050684,120]
[354461744,1740519087557,-420.92816662,0.00050684,120]
[354461745,1740519087567,-500.0,0.00050684,120]
[354461746,1740519087576,-500.0,0.00050684,120]
[354461747,1740519087587,-1573.02,0.00050684,120]
[354461748,1740519087597,-500.0,0.00050684,120]
[354461749,1740519087607,-876.92,0.00050684,120]
[354461750,1740519087620,-925.21,0.00050684,120]
[354461751,1740519087634,-660.53,0.00050684,120]
[354461752,1740519087644,-500.0,0.00050684,120]
[354461753,1740519087654,-500.0,0.00050684,120]
[354461754,1740519087665,-500.0,0.00050684,120]
[354461755,1740519087675,-795.52,0.00050684,120]
[354461756,1740519087684,-500.0,0.00050684,120]
[354461757,1740519087696,-500.0,0.00050684,120]
[354461758,1740519087707,-500.0,0.00050684,120]
[354461759,1740519087717,-500.0,0.00050684,120]
[354461760,1740519087727,-500.0,0.00050684,120]
[354461761,1740519087737,-500.0,0.00050684,120]
[354461762,1740519087747,-1269.6,0.00050684,120]
[354461763,1740519087757,-402.14349783,0.00050684,120]
[354461764,1740519087766,-500.0,0.00050684,120]
[354461765,1740519087776,-500.0,0.00050684,120]
[354461766,1740519087786,-500.0,0.00050684,120]
[354461767,1740519087797,-500.0,0.00050684,120]
[354461768,1740519087808,-159.39285376,0.00050684,120]
[354461769,1740519087817,-545.88,0.00050684,120]
[354461770,1740519087828,-557.42829957,0.00050684,120]
[354461771,1740519087839,-562.39,0.00050684,120]
[354461772,1740519087849,-1658.65,0.00050684,120]
[354461773,1740519087858,-276.42634141,0.00050684,120]
[354461774,1740519087867,-268.32934947,0.00050684,120]
[354461775,1740519087876,-511.14,0.00050684,120]
[354461776,1740519087886,-500.0,0.00050684,120]
[354461777,1740519087896,-500.0,0.00050684,120]
[354461778,1740519087906,-712.2,0.00050684,120]
[354461779,1740519087916,-3546.38,0.00050684,120]
[354461780,1740519087925,-500.0,0.00050684,120]
[354461781,1740519087935,-500.0,0.00050684,120]
[354461782,1740519087946,-228.31270778,0.00050684,120]
[354461783,1740519087956,-536.86423259,0.00050684,120]
[354461784,1740519087965,-500.0,0.00050684,120]
[354461785,1740519087975,-509.5352674,0.00050684,120]
[354461786,1740519087984,-500.0,0.00050684,120]
[354461787,1740519087994,-500.0,0.00050684,120]
[354461788,1740519088004,-500.0,0.00050684,120]
[354461789,1740519088013,-500.0,0.00050684,120]
[354461790,1740519088023,-500.0,0.00050684,120]
[354461791,1740519088032,-1235.61,0.00050684,120]
[354461792,1740519088041,-500.0,0.00050684,120]
[354461793,1740519088050,-596.01,0.00050684,120]
[354461794,1740519088059,-500.0,0.00050684,120]
[354461795,1740519088069,-500.0,0.00050684,120]
[354461796,1740519088078,-500.0,0.00050684,120]
[354461797,1740519088088,-598.31,0.00050684,120]
[354461798,1740519088097,-572.41,0.00050684,120]
[354461799,1740519088107,-500.0,0.00050684,120]
[354461800,1740519088116,-693.13,0.00050684,120]
[354461801,1740519088125,-500.0,0.00050684,120]
[354461802,1740519088135,-500.0,0.00050684,120]
[354461803,1740519088144,-500.0,0.00050684,120]
[354461804,1740519088153,-500.0,0.00050684,120]
[354461805,1740519088163,-500.0,0.00050684,120]
[354461806,1740519088173,-500.0,0.00050684,120]
[354461807,1740519088183,-500.0,0.00050684,120]
[354461808,1740519088193,-500.0,0.00050684,120]
[354461809,1740519088202,-500.0,0.00050684,120]
[354461810,1740519088212,-500.0,0.00050684,120]
[354461811,1740519088226,-346.36678609,0.00050684,120]
[354461812,1740519088236,-500.0,0.00050684,120]
[354461813,1740519088247,-500.0,0.00050684,120]
[354461814,1740519088257,-500.0,0.00050684,120]
[354461815,1740519088267,-500.0,0.00050684,120]
[354461816,1740519088277,-1778.47,0.00050684,120]
[354461817,1740519088287,-500.0,0.00050684,120]
[354461818,1740519088296,-505.98019744,0.00050684,120]
[354461819,1740519088306,-500.0,0.00050684,120]
[354461820,1740519088315,-500.0,0.00050684,120]
[354461821,1740519088325,-524.29,0.00050684,120]
[354461822,1740519088335,-376.47580798,0.00050684,120]
[354461823,1740519088345,-500.0,0.00050684,120]
[354461824,1740519088355,-500.0,0.00050684,120]
[354461825,1740519088367,-500.0,0.00050684,120]
[354461826,1740519088377,-803.68,0.00050684,120]
[354461827,1740519088387,-2827.55,0.00050684,120]
[354461828,1740519088396,-500.0,0.00050684,120]
[354461829,1740519088405,-500.0,0.00050684,120]
[354461830,1740519088414,-500.0,0.00050684,120]
[354461831,1740519088423,-500.0,0.00050684,120]
[354461832,1740519088433,-500.0,0.00050684,120]
[354461833,1740519088444,-1286.1,0.00050684,120]
[354461834,1740519088453,-243.32485298,0.00050684,30]
[354461835,1740519088462,-500.0,0.00050684,120]
[354461836,1740519088473,-500.0,0.00050684,120]
[354461837,1740519088482,-764.69,0.00050684,120]
[354461838,1740519088492,-2002.03,0.00050684,120]
[354461839,1740519088502,-500.0,0.00050684,120]
[354461840,1740519088512,-500.0,0.00050684,120]
[354461841,1740519088522,-500.0,0.00050684,120]
[354461842,1740519088532,-500.0,0.00050684,120]